fUSD/lending_fUSD_20260111
["ID","MTS","AMOUNT","RATE_DAILY","PERIOD"]
[401377679,1768167046768,-265.93844707,0.00017764,2]
[401377680,1768167046777,-1000.0,0.00017771,2]
[401377681,1768167046786,-150.0,0.00017775,2]
[401377682,1768167046796,-930.0,0.0001778,2]
[401377683,1768167046805,-357.99250845,0.0001778,2]
[401377684,1768167046814,-150.0,0.0001778,2]
[401377685,1768167046824,-265.93844707,0.00017782,2]
[401377686,1768167046833,-1000.0,0.00017783,2]
[401377687,1768167046843,-1382.78,0.0001779,2]
[401377688,1768167046853,-263.81978441,0.00017799,3]
[401377689,1768167046863,-265.93844707,0.000178,2]
[401377690,1768167046872,-150.0,0.000178,2]
[401377691,1768167046882,-1000.0,0.000178,2]
[401377692,1768167046893,-14440.20798762,0.000178,2]
[401377693,1768167046902,-698.1499061,0.000178,2]
[401377694,1768167046912,-9066.46889851,0.000178,2]
[401377695,1768167046922,-10000.0,0.000178,6]
[401377696,1768167046931,-1000.0,0.00017801,2]
[401377697,1768167046941,-1080.07034757,0.00017802,2]
[401377698,1768167046952,-469.73455352,0.00017802,2]
[401377699,1768167046962,-1000.0,0.00017807,2]
[401377700,1768167046972,-2171.6,0.00017809,2]
[401377701,1768167046982,-1000.0,0.00017812,2]
[401377702,1768167046992,-265.93844707,0.00017818,2]
[401377703,1768167047002,-1000.0,0.0001782,2]
[401377704,1768167047012,-150.0,0.0001782,2]
[401377705,1768167047022,-1552.14999,0.0001782,2]
[401377706,1768167047032,-1552.15,0.0001782,2]
[401377707,1768167047043,-1552.15,0.0001782,2]
[401377708,1768167047052,-971.11466,0.0001782,2]
[401377709,1768167047062,-971.11466,0.0001782,2]
[401377710,1768167047072,-1552.15,0.0001782,2]
[401377711,1768167047083,-1552.15,0.0001782,2]
[401377712,1768167047093,-330.14190427,0.00017821,2]
[401377713,1768167047103,-951.20233,0.0001783,2]
[401377714,1768167047113,-1062.12389034,0.00017832,2]
[401377715,1768167047123,-1000.0,0.00017835,2]
[401377716,1768167047133,-930.0,0.00017835,2]
[401377717,1768167047143,-150.0,0.00017835,2]
[401377718,1768167047153,-150.0,0.00017836,2]
[401377719,1768167047163,-265.93844707,0.00017836,2]
[401377720,1768167047172,-150.0,0.0001784,2]
[401377721,1768167047182,-302.45132522,0.00017841,2]
[401377722,1768167047192,-115435.96051447,0.00017841,2]
[401377723,1768167047203,-187780.56083856,0.00017842,2]
[401377724,1768167047212,-265202.19590096,0.00017842,2]
[401377725,1768167047222,-343166.0562,0.00017842,2]
[401377726,1768167047231,-151.0,0.00017842,2]
[401377727,1768167047240,-151.0,0.00017842,2]
[401377728,1768167047250,-1330.670353,0.00017842,2]
[401377729,1768167047259,-1330.670353,0.00017842,2]
[401377730,1768167047268,-1330.670353,0.00017842,2]
[401377731,1768167047278,-151.0,0.00017842,2]
[401377732,1768167047287,-1330.670353,0.00017842,2]
[401377733,1768167047297,-151.0,0.00017842,2]
[401377734,1768167047307,-662.145373,0.00017842,2]
[401377735,1768167047318,-151.0,0.00017842,2]
[401377736,1768167047335,-151.0,0.00017842,2]
[401377737,1768167047345,-662.145373,0.00017842,2]
[401377738,1768167047355,-662.145373,0.00017842,2]
[401377739,1768167047365,-206.516559,0.00017842,2]
[401377740,1768167047374,-151.0,0.00017842,2]
[401377741,1768167047384,-662.145373,0.00017842,2]
[401377742,1768167047393,-151.0,0.00017842,2]
[401377743,1768167047403,-151.0,0.00017842,2]
[401377744,1768167047413,-151.0,0.00017842,2]
[401377745,1768167047422,-151.0,0.00017842,2]
[401377746,1768167047436,-151.0,0.00017842,2]
[401377747,1768167047446,-2068.70979,0.00017842,2]
[401377748,1768167047456,-2068.70979,0.00017842,2]
[401377749,1768167047465,-2068.70979,0.00017842,2]
[401377750,1768167047475,-2068.70979,0.00017842,2]
[401377751,1768167047484,-151.0,0.00017842,2]
[401377752,1768167047494,-151.0,0.00017842,2]
[401377753,1768167047503,-151.0,0.00017842,2]
[401377754,1768167047512,-246.453607,0.00017842,2]
[401377755,1768167047522,-151.0,0.00017842,2]
[401377756,1768167047531,-246.453607,0.00017842,2]
[401377757,1768167047540,-246.453607,0.00017842,2]
[401377758,1768167047549,-246.453607,0.00017842,2]
[401377759,1768167047559,-151.0,0.00017842,2]
[401377760,1768167047569,-151.0,0.00017842,2]
[401377761,1768167047579,-4700.883777,0.00017842,2]
[401377762,1768167047587,-160.818495,0.00017842,2]
[401377763,1768167047598,-151.0,0.00017842,2]
[401377764,1768167047607,-151.0,0.00017842,2]
[401377765,1768167047616,-4700.883777,0.00017842,2]
[401377766,1768167047626,-180.650717,0.00017842,2]
[401377767,1768167047637,-4700.883777,0.00017842,2]
[401377768,1768167047646,-4700.883777,0.00017842,2]
[401377769,1768167047656,-790.895146,0.00017842,2]
[401377770,1768167047666,-151.0,0.00017842,2]
[401377771,1768167047675,-151.0,0.00017842,2]
[401377772,1768167047684,-790.895146,0.00017842,2]
[401377773,1768167047695,-387.144329,0.00017842,2]
[401377774,1768167047704,-151.0,0.00017842,2]
[401377775,1768167047714,-790.895146,0.00017842,2]
[401377776,1768167047723,-387.144329,0.00017842,2]
[401377777,1768167047732,-151.0,0.00017842,2]
[401377778,1768167047743,-790.895146,0.00017842,2]
[401377779,1768167047753,-387.144329,0.00017842,2]
[401377780,1768167047762,-312.26731,0.00017842,2]
[401377781,1768167047772,-312.26731,0.00017842,2]
[401377782,1768167047782,-1312.519333,0.00017842,2]
[401377783,1768167047792,-312.26731,0.00017842,2]
[401377784,1768167047802,-690.815863,0.00017842,2]
[401377785,1768167047812,-1312.519333,0.00017842,2]
[401377786,1768167047822,-312.26731,0.00017842,2]
[401377787,1768167047832,-151.0,0.00017842,2]
[401377788,1768167047842,-690.815863,0.00017842,2]
[401377789,1768167047852,-1312.519333,0.00017842,2]
[401377790,1768167047862,-387.144329,0.00017842,2]
[401377791,1768167047872,-394.574118,0.00017842,2]
[401377792,1768167047881,-690.815863,0.00017842,2]
[401377793,1768167047891,-1312.519333,0.00017842,2]
[401377794,1768167047901,-394.574118,0.00017842,2]
[401377795,1768167047912,-690.815863,0.00017842,2]
[401377796,1768167047923,-151.0,0.00017842,2]
[401377797,1768167047933,-151.0,0.00017842,2]
[401377798,1768167047943,-394.574118,0.00017842,2]
[401377799,1768167047952,-151.0,0.00017842,2]
[401377800,1768167047962,-394.574118,0.00017842,2]
[401377801,1768167047971,-151.0,0.00017842,2]
[401377802,1768167047981,-151.0,0.00017842,2]
[401377803,1768167047990,-151.0,0.00017842,2]
[401377804,1768167048000,-151.0,0.00017842,2]
[401377805,1768167048009,-151.0,0.00017842,2]
[401377806,1768167048019,-1046.66882,0.00017842,2]
[401377807,1768167048028,-1046.66882,0.00017842,2]
[401377808,1768167048038,-1046.66882,0.00017842,2]
[401377809,1768167048048,-1046.66882,0.00017842,2]
[401377810,1768167048058,-151.0,0.00017842,2]
[401377811,1768167048067,-170.500208,0.00017842,2]
[401377812,1768167048077,-151.0,0.00017842,2]
[401377813,1768167048087,-170.500208,0.00017842,2]
[401377814,1768167048096,-151.0,0.00017842,2]
[401377815,1768167048106,-151.0,0.00017842,2]
[401377816,1768167048116,-170.500208,0.00017842,2]
[401377817,1768167048126,-151.0,0.00017842,2]
[401377818,1768167048136,-151.0,0.00017842,2]
[401377819,1768167048145,-170.500208,0.00017842,2]
[401377820,1768167048155,-151.0,0.00017842,2]
[401377821,1768167048164,-151.0,0.00017842,2]
[401377822,1768167048174,-151.0,0.00017842,2]
[401377823,1768167048184,-189.479204,0.00017842,2]
[401377824,1768167048194,-151.0,0.00017842,2]
[401377825,1768167048203,-716.799137,0.00017842,2]
[401377826,1768167048213,-151.0,0.00017842,2]
[401377827,1768167048223,-716.799137,0.00017842,2]
[401377828,1768167048232,-716.799137,0.00017842,2]
[401377829,1768167048241,-716.799137,0.00017842,2]
[401377830,1768167048251,-151.0,0.00017842,2]
[401377831,1768167048261,-151.0,0.00017842,2]
[401377832,1768167048271,-151.0,0.00017842,2]
[401377833,1768167048281,-506.865865,0.00017842,2]
[401377834,1768167048290,-506.865865,0.00017842,2]
[401377835,1768167048300,-151.0,0.00017842,2]
[401377836,1768167048310,-151.0,0.00017842,2]
[401377837,1768167048320,-506.865865,0.00017842,2]
[401377838,1768167048330,-2061.870797,0.00017842,2]
[401377839,1768167048340,-151.0,0.00017842,2]
[401377840,1768167048350,-151.0,0.00017842,2]
[401377841,1768167048361,-506.865865,0.00017842,2]
[401377842,1768167048371,-151.0,0.00017842,2]
[401377843,1768167048380,-1026.274913,0.00017842,2]
[401377844,1768167048389,-425.048909,0.00017842,2]
[401377845,1768167048398,-2061.870797,0.00017842,2]
[401377846,1768167048407,-174.000186,0.00017842,2]
[401377847,1768167048416,-151.0,0.00017842,2]
[401377848,1768167048425,-1026.274913,0.00017842,2]
[401377849,1768167048434,-425.048909,0.00017842,2]
[401377850,1768167048444,-174.000186,0.00017842,2]
[401377851,1768167048453,-2061.870797,0.00017842,2]
[401377852,1768167048463,-929.163466,0.00017842,2]
[401377853,1768167048472,-151.0,0.00017842,2]
[401377854,1768167048481,-1026.274913,0.00017842,2]
[401377855,1768167048490,-151.0,0.00017842,2]
[401377856,1768167048500,-425.048909,0.00017842,2]
[401377857,1768167048509,-2061.870797,0.00017842,2]
[401377858,1768167048518,-174.000186,0.00017842,2]
[401377859,1768167048527,-929.163466,0.00017842,2]
[401377860,1768167048537,-580.109053,0.00017842,2]
[401377861,1768167048546,-573.970445,0.00017842,2]
[401377862,1768167048555,-284.641356,0.00017842,2]
[401377863,1768167048564,-1026.274913,0.00017842,2]
[401377864,1768167048573,-425.048909,0.00017842,2]
[401377865,1768167048583,-174.000186,0.00017842,2]
[401377866,1768167048592,-580.109053,0.00017842,2]
[401377867,1768167048602,-929.163466,0.00017842,2]
[401377868,1768167048611,-573.970445,0.00017842,2]
[401377869,1768167048621,-580.109053,0.00017842,2]
[401377870,1768167048633,-929.163466,0.00017842,2]
[401377871,1768167048643,-151.0,0.00017842,2]
[401377872,1768167048653,-573.970445,0.00017842,2]
[401377873,1768167048663,-151.0,0.00017842,2]
[401377874,1768167048673,-161.879998,0.00017842,2]
[401377875,1768167048682,-580.109053,0.00017842,2]
[401377876,1768167048692,-151.0,0.00017842,2]
[401377877,1768167048702,-573.970445,0.00017842,2]
[401377878,1768167048712,-1965.222408,0.00017842,2]
[401377879,1768167048723,-173.624464,0.00017842,2]
[401377880,1768167048735,-151.0,0.00017842,2]
[401377881,1768167048746,-1965.222408,0.00017842,2]
[401377882,1768167048756,-173.624464,0.00017842,2]
[401377883,1768167048766,-1965.222408,0.00017842,2]
[401377884,1768167048777,-151.0,0.00017842,2]
[401377885,1768167048870,-173.624464,0.00017842,2]
[401377886,1768167048880,-151.0,0.00017842,2]
[401377887,1768167048890,-1965.222408,0.00017842,2]
[401377888,1768167048900,-173.624464,0.00017842,2]
[401377889,1768167048911,-196.746434,0.00017842,2]
[401377890,1768167048921,-192.571095,0.00017842,2]
[401377891,1768167048930,-2250.851841,0.00017842,2]
[401377892,1768167048940,-196.746434,0.00017842,2]
[401377893,1768167048952,-192.571095,0.00017842,2]
[401377894,1768167048962,-196.746434,0.00017842,2]
[401377895,1768167048972,-192.571095,0.00017842,2]
[401377896,1768167048981,-2250.851841,0.00017842,2]
[401377897,1768167048991,-955.098773,0.00017842,2]
[401377898,1768167049002,-151.0,0.00017842,2]
[401377899,1768167049011,-196.746434,0.00017842,2]
[401377900,1768167049022,-192.571095,0.00017842,2]
[401377901,1768167049031,-2250.851841,0.00017842,2]
[401377902,1768167049040,-955.098773,0.00017842,2]
[401377903,1768167049050,-4861.778437,0.00017842,2]
[401377904,1768167049059,-151.0,0.00017842,2]
[401377905,1768167049069,-2250.851841,0.00017842,2]
[401377906,1768167049079,-4861.778437,0.00017842,2]
[401377907,1768167049089,-955.098773,0.00017842,2]
[401377908,1768167049099,-151.0,0.00017842,2]
[401377909,1768167049108,-175.360482,0.00017842,2]
[401377910,1768167049118,-4861.778437,0.00017842,2]
[401377911,1768167049127,-955.098773,0.00017842,2]
[401377912,1768167049137,-4861.778437,0.00017842,2]
[401377913,1768167049146,-151.0,0.00017842,2]
[401377914,1768167049156,-151.0,0.00017842,2]
[401377915,1768167049165,-151.0,0.00017842,2]
[401377916,1768167049175,-269.043107,0.00017842,2]
[401377917,1768167049184,-151.0,0.00017842,2]
[401377918,1768167049193,-300.872706,0.00017842,2]
[401377919,1768167049205,-754.789807,0.00017842,2]
[401377920,1768167049215,-151.0,0.00017842,2]
[401377921,1768167049225,-754.789807,0.00017842,2]
[401377922,1768167049234,-754.789807,0.00017842,2]
[401377923,1768167049244,-754.789807,0.00017842,2]
[401377924,1768167049255,-432.791122,0.00017842,2]
[401377925,1768167049264,-681.018501,0.00017842,2]
[401377926,1768167049274,-499.566603,0.00017842,2]
[401377927,1768167049283,-432.791122,0.00017842,2]
[401377928,1768167049293,-151.0,0.00017842,2]
[401377929,1768167049302,-681.018501,0.00017842,2]
[401377930,1768167049312,-499.566603,0.00017842,2]
[401377931,1768167049321,-432.791122,0.00017842,2]
[401377932,1768167049331,-151.0,0.00017842,2]
[401377933,1768167049340,-499.566603,0.00017842,2]
[401377934,1768167049350,-432.791122,0.00017842,2]
[401377935,1768167049359,-681.018501,0.00017842,2]
[401377936,1768167049368,-151.0,0.00017842,2]
[401377937,1768167049377,-499.566603,0.00017842,2]
[401377938,1768167049387,-151.0,0.00017842,2]
[401377939,1768167049396,-681.018501,0.00017842,2]
[401377940,1768167049406,-395.895764,0.00017842,2]
[401377941,1768167049415,-395.895764,0.00017842,2]
[401377942,1768167049425,-395.895764,0.00017842,2]
[401377943,1768167049434,-395.895764,0.00017842,2]
[401377944,1768167049443,-395.895764,0.00017842,2]
[401377945,1768167049454,-395.895764,0.00017842,2]
[401377946,1768167049463,-395.895764,0.00017842,2]
[401377947,1768167049472,-395.895764,0.00017842,2]
[401377948,1768167049482,-414.496549,0.00017842,2]
[401377949,1768167049491,-414.496549,0.00017842,2]
[401377950,1768167049501,-151.0,0.00017842,2]
[401377951,1768167049511,-151.0,0.00017842,2]
[401377952,1768167049521,-414.496549,0.00017842,2]
[401377953,1768167049530,-151.0,0.00017842,2]
[401377954,1768167049540,-414.496549,0.00017842,2]
[401377955,1768167049550,-151.0,0.00017842,2]
[401377956,1768167049559,-151.0,0.00017842,2]
[401377957,1768167049569,-151.0,0.00017842,2]
[401377958,1768167049579,-414.496549,0.00017842,2]
[401377959,1768167049588,-151.0,0.00017842,2]
[401377960,1768167049597,-414.496549,0.00017842,2]
[401377961,1768167049607,-151.0,0.00017842,2]
[401377962,1768167049617,-151.0,0.00017842,2]
[401377963,1768167049628,-151.0,0.00017842,2]
[401377964,1768167049638,-414.496549,0.00017842,2]
[401377965,1768167049647,-414.496549,0.00017842,2]
[401377966,1768167049656,-151.0,0.00017842,2]
[401377967,1768167049665,-228.553516,0.00017842,2]
[401377968,1768167049674,-151.0,0.00017842,2]
[401377969,1768167049684,-151.0,0.00017842,2]
[401377970,1768167049693,-199.832252,0.00017842,2]
[401377971,1768167049704,-151.0,0.00017842,2]
[401377972,1768167049714,-151.0,0.00017842,2]
[401377973,1768167049723,-151.0,0.00017842,2]
[401377974,1768167049733,-266.914435,0.00017842,2]
[401377975,1768167049742,-199.832252,0.00017842,2]
[401377976,1768167049751,-151.0,0.00017842,2]
[401377977,1768167049760,-151.0,0.00017842,2]
[401377978,1768167049769,-151.0,0.00017842,2]
[401377979,1768167049779,-199.832252,0.00017842,2]
[401377980,1768167049788,-151.0,0.00017842,2]
[401377981,1768167049797,-199.832252,0.00017842,2]
[401377982,1768167049806,-151.0,0.00017842,2]
[401377983,1768167049815,-151.0,0.00017842,2]
[401377984,1768167049825,-151.0,0.00017842,2]
[401377985,1768167049834,-151.0,0.00017842,2]
[401377986,1768167049843,-199.832252,0.00017842,2]
[401377987,1768167049853,-151.0,0.00017842,2]
[401377988,1768167049862,-151.0,0.00017842,2]
[401377989,1768167049871,-199.832252,0.00017842,2]
[401377990,1768167049881,-151.0,0.00017842,2]
[401377991,1768167049890,-151.0,0.00017842,2]
[401377992,1768167049899,-199.832252,0.00017842,2]
[401377993,1768167049909,-199.832252,0.00017842,2]
[401377994,1768167049919,-151.0,0.00017842,2]
[401377995,1768167049928,-151.0,0.00017842,2]
[401377996,1768167049938,-151.0,0.00017842,2]
[401377997,1768167049947,-263.81978441,0.0001785,3]
[401377998,1768167049957,-698.14990608,0.0001785,2]
[401377999,1768167049966,-9066.46889851,0.0001785,2]
[401378000,1768167049975,-2111.0,0.00017851,2]
[401378001,1768167049985,-265.93844707,0.00017855,2]
[401378002,1768167049994,-200.0,0.00017856,2]
[401378003,1768167050004,-150.0,0.00017871,2]
[401378004,1768167050013,-2171.6,0.00017872,2]
[401378005,1768167050023,-1089.8409,0.00017873,2]
[401378006,1768167050033,-265.93844707,0.00017873,2]
[401378007,1768167050043,-951.20233,0.0001788,2]
[401378008,1768167050052,-150.0,0.00017885,2]
[401378009,1768167050061,-1000.0,0.00017889,2]
[401378010,1768167050071,-1000.0,0.00017889,2]
[401378011,1768167050080,-930.0,0.0001789,2]
[401378012,1768167050090,-240.93864057,0.0001789,2]
[401378013,1768167050099,-265.93844707,0.00017891,2]
[401378014,1768167050109,-25000.0,0.00017891,3]
[401378015,1768167050118,-500.0,0.00017899,2]
[401378016,1768167050127,-500.0,0.00017899,2]
[401378017,1768167050137,-517.58562247,0.00017899,2]
[401378018,1768167050146,-500.0,0.00017899,2]
[401378019,1768167050155,-500.0,0.00017899,2]
[401378020,1768167050164,-500.0,0.00017899,2]
[401378021,1768167050173,-25000.0,0.000179,3]
[401378022,1768167050183,-1037.8667,0.000179,2]
[401378023,1768167050192,-151.0,0.000179,2]
[401378024,1768167050201,-151.0,0.000179,2]
[401378025,1768167050210,-151.0,0.000179,2]
[401378026,1768167050219,-151.0,0.000179,2]
[401378027,1768167050228,-151.0,0.000179,2]
[401378028,1768167050237,-151.0,0.000179,2]
[401378029,1768167050247,-151.0,0.000179,2]
[401378030,1768167050257,-151.0,0.000179,2]
[401378031,1768167050266,-342.488988,0.000179,2]
[401378032,1768167050275,-151.0,0.000179,2]
[401378033,1768167050284,-342.488988,0.000179,2]
[401378034,1768167050294,-342.488988,0.000179,2]
[401378035,1768167050303,-342.488988,0.000179,2]
[401378036,1768167050311,-151.0,0.000179,2]
[401378037,1768167050320,-4035.95968706,0.000179,3]
[401378038,1768167050329,-151.0,0.000179,2]
[401378039,1768167050338,-151.0,0.000179,2]
[401378040,1768167050347,-151.0,0.000179,2]
[401378041,1768167050355,-151.0,0.000179,2]
[401378042,1768167050364,-151.0,0.000179,2]
[401378043,1768167050375,-151.0,0.000179,2]
[401378044,1768167050388,-151.0,0.000179,2]
[401378045,1768167050397,-151.0,0.000179,2]
[401378046,1768167050406,-151.0,0.000179,2]
[401378047,1768167050415,-151.0,0.000179,2]
[401378048,1768167050424,-151.0,0.000179,2]
[401378049,1768167050436,-151.0,0.000179,2]
[401378050,1768167050452,-171.161097,0.000179,2]
[401378051,1768167050461,-151.0,0.000179,2]
[401378052,1768167050470,-151.0,0.000179,2]
[401378053,1768167050479,-151.0,0.000179,2]
[401378054,1768167050488,-151.0,0.000179,2]
[401378055,1768167050497,-151.0,0.000179,2]
[401378056,1768167050506,-151.0,0.000179,2]
[401378057,1768167050515,-151.0,0.000179,2]
[401378058,1768167050524,-151.0,0.000179,2]
[401378059,1768167050533,-157.098488,0.000179,2]
[401378060,1768167050543,-151.0,0.000179,2]
[401378061,1768167050552,-162.357399,0.000179,2]
[401378062,1768167050560,-151.0,0.000179,2]
[401378063,1768167050567,-151.0,0.000179,2]
[401378064,1768167050574,-202.895955,0.000179,2]
[401378065,1768167050582,-151.0,0.000179,2]
[401378066,1768167050590,-151.0,0.000179,2]
[401378067,1768167050598,-151.0,0.000179,2]
[401378068,1768167050605,-151.0,0.000179,2]
[401378069,1768167050612,-151.0,0.000179,2]
[401378070,1768167050624,-330.14190427,0.000179,2]
[401378071,1768167050635,-151.0,0.000179,2]
[401378072,1768167050644,-151.0,0.000179,2]
[401378073,1768167050654,-267.334165,0.000179,2]
[401378074,1768167050663,-151.0,0.000179,2]
[401378075,1768167050674,-151.0,0.000179,2]
[401378076,1768167050683,-151.0,0.000179,2]
[401378077,1768167050692,-345.270868,0.000179,2]
[401378078,1768167050704,-345.270868,0.000179,2]
[401378079,1768167050714,-345.270868,0.000179,2]
[401378080,1768167050723,-345.270868,0.000179,2]
[401378081,1768167050732,-151.0,0.000179,2]
[401378082,1768167050742,-151.0,0.000179,2]
[401378083,1768167050751,-151.0,0.000179,2]
[401378084,1768167050761,-151.0,0.000179,2]
[401378085,1768167050771,-151.0,0.000179,2]
[401378086,1768167050780,-151.0,0.000179,2]
[401378087,1768167050790,-151.0,0.000179,2]
[401378088,1768167050799,-151.0,0.000179,2]
[401378089,1768167050808,-415.129108,0.000179,2]
[401378090,1768167050817,-415.129108,0.000179,2]
[401378091,1768167050826,-151.0,0.000179,2]
[401378092,1768167050835,-415.129108,0.000179,2]
[401378093,1768167050844,-415.129108,0.000179,2]
[401378094,1768167050853,-172.082779,0.000179,2]
[401378095,1768167050862,-298.630319,0.000179,2]
[401378096,1768167050871,-298.630319,0.000179,2]
[401378097,1768167050880,-298.630319,0.000179,2]
[401378098,1768167050888,-151.0,0.000179,2]
[401378099,1768167050898,-680.939729,0.000179,2]
[401378100,1768167050907,-298.630319,0.000179,2]
[401378101,1768167050917,-680.939729,0.000179,2]
[401378102,1768167050926,-151.0,0.000179,2]
[401378103,1768167050935,-151.0,0.000179,2]
[401378104,1768167050944,-680.939729,0.000179,2]
[401378105,1768167050955,-151.0,0.000179,2]
[401378106,1768167050964,-151.0,0.000179,2]
[401378107,1768167050974,-151.0,0.000179,2]
[401378108,1768167050983,-16485.91631081,0.000179,2]
[401378109,1768167050993,-680.939729,0.000179,2]
[401378110,1768167051002,-151.0,0.000179,2]
[401378111,1768167051011,-159.384319,0.000179,2]
[401378112,1768167051021,-151.0,0.000179,2]
[401378113,1768167051030,-241.091622,0.000179,2]
[401378114,1768167051040,-151.0,0.000179,2]
[401378115,1768167051050,-151.0,0.000179,2]
[401378116,1768167051060,-151.0,0.000179,2]
[401378117,1768167051069,-151.0,0.000179,2]
[401378118,1768167051079,-223.771483,0.000179,2]
[401378119,1768167051088,-151.0,0.000179,2]
[401378120,1768167051097,-188.904835,0.000179,2]
[401378121,1768167051106,-151.0,0.000179,2]
[401378122,1768167051115,-151.0,0.000179,2]
[401378123,1768167051124,-188.904835,0.000179,2]
[401378124,1768167051133,-151.0,0.000179,2]
[401378125,1768167051143,-15703.44932379,0.000179,2]
[401378126,1768167051152,-188.904835,0.000179,2]
[401378127,1768167051161,-188.904835,0.000179,2]
[401378128,1768167051170,-174.887374,0.000179,2]
[401378129,1768167051179,-380.840895,0.000179,2]
[401378130,1768167051188,-151.0,0.000179,2]
[401378131,1768167051197,-380.840895,0.000179,2]
[401378132,1768167051206,-151.0,0.000179,2]
[401378133,1768167051216,-380.840895,0.000179,2]
[401378134,1768167051225,-1000.0,0.000179,2]
[401378135,1768167051234,-380.840895,0.000179,2]
[401378136,1768167051244,-10418.0,0.000179,6]
[401378137,1768167051253,-440.38994644,0.000179,2]
[401378138,1768167051263,-698.14990608,0.000179,2]
[401378139,1768167051272,-151.0,0.000179,2]
[401378140,1768167051281,-151.0,0.000179,2]
[401378141,1768167051290,-151.0,0.000179,2]
[401378142,1768167051299,-2061.870797,0.000179,2]
[401378143,1768167051308,-151.0,0.000179,2]
[401378144,1768167051317,-151.0,0.000179,2]
[401378145,1768167051326,-425.048909,0.000179,2]
[401378146,1768167051336,-174.000186,0.000179,2]
[401378147,1768167051345,-2061.870797,0.000179,2]
[401378148,1768167051354,-151.0,0.000179,2]
[401378149,1768167051363,-425.048909,0.000179,2]
[401378150,1768167051371,-174.000186,0.000179,2]
[401378151,1768167051380,-2061.870797,0.000179,2]
[401378152,1768167051388,-929.163466,0.000179,2]
[401378153,1768167051397,-955.36169636,0.000179,2]
[401378154,1768167051406,-151.0,0.000179,2]
[401378155,1768167051415,-151.0,0.000179,2]
[401378156,1768167051425,-2061.870797,0.000179,2]
[401378157,1768167051434,-425.048909,0.000179,2]
[401378158,1768167051443,-174.000186,0.000179,2]
[401378159,1768167051453,-929.163466,0.000179,2]
[401378160,1768167051463,-580.109053,0.000179,2]
[401378161,1768167051473,-573.970445,0.000179,2]
[401378162,1768167051482,-425.048909,0.000179,2]
[401378163,1768167051491,-580.109053,0.000179,2]
[401378164,1768167051501,-174.000186,0.000179,2]
[401378165,1768167051510,-929.163466,0.000179,2]
[401378166,1768167051521,-573.970445,0.000179,2]
[401378167,1768167051539,-9066.46889851,0.000179,2]
[401378168,1768167051548,-580.109053,0.000179,2]
[401378169,1768167051557,-929.163466,0.000179,2]
[401378170,1768167051566,-955.36169617,0.000179,2]
[401378171,1768167051575,-573.970445,0.000179,2]
[401378172,1768167051585,-216.190039,0.000179,2]
[401378173,1768167051594,-179.284149,0.000179,2]
[401378174,1768167051603,-580.109053,0.000179,2]
[401378175,1768167051612,-151.0,0.000179,2]
[401378176,1768167051622,-573.970445,0.000179,2]
[401378177,1768167051635,-1965.222408,0.000179,2]
[401378178,1768167051644,-173.624464,0.000179,2]